lending/lending_fUSD_20240507
["ID","MTS","AMOUNT","RATE_DAILY","PERIOD"]
[326526288,1715045455301,-500.0,0.00024657,2]
[326526289,1715045455310,-1493.67,0.00024657,2]
[326526290,1715045455319,-755.23,0.00024657,2]
[326526291,1715045455328,-1149.95,0.00024657,2]
[326526292,1715045455338,-1837.33,0.00024657,2]
[326526293,1715045455347,-500.0,0.00024657,2]
[326526294,1715045455356,-500.0,0.00024657,2]
[326526295,1715045455366,-500.0,0.00024657,2]
[326526296,1715045455376,-500.0,0.00024657,2]
[326526297,1715045455385,-549.82,0.00024657,2]
[326526298,1715045455395,-500.0,0.00024657,2]
[326526299,1715045455406,-596.96,0.00024657,2]
[326526300,1715045455415,-1562.91,0.00024657,2]
[326526301,1715045455425,-3155.06,0.00024657,2]
[326526302,1715045455434,-500.0,0.00024657,2]
[326526303,1715045455445,-500.0,0.00024657,2]
[326526304,1715045455454,-6931.3,0.00024657,2]
[326526305,1715045455464,-500.0,0.00024657,2]
[326526306,1715045455473,-2569.89,0.00024657,2]
[326526307,1715045455483,-500.0,0.00024657,2]
[326526308,1715045455493,-500.0,0.00024657,2]
[326526309,1715045455504,-577.86,0.00024657,2]
[326526310,1715045455520,-1919.46,0.00024657,2]
[326526311,1715045455538,-359.81446216,0.00024657,2]
[326526312,1715045455548,-598.76,0.00024657,2]
[326526313,1715045455557,-2327.1,0.00024657,2]
[326526314,1715045455566,-500.0,0.00024657,2]
[326526315,1715045455575,-3816.25,0.00024657,2]
[326526316,1715045455584,-500.0,0.00024657,2]
[326526317,1715045455598,-992.51,0.00024657,2]
[326526318,1715045455608,-296.93527541,0.00024657,2]
[326526319,1715045455618,-500.0,0.00024657,2]
[326526320,1715045455628,-500.0,0.00024657,2]
[326526321,1715045455637,-500.0,0.00024657,2]
[326526322,1715045455648,-835.04,0.00024657,2]
[326526323,1715045455657,-500.0,0.00024657,2]
[326526324,1715045455667,-500.0,0.00024657,2]
[326526325,1715045455677,-500.0,0.00024657,2]
[326526326,1715045455687,-500.0,0.00024657,2]
[326526327,1715045455699,-500.0,0.00024657,2]
[326526328,1715045455709,-500.0,0.00024657,2]
[326526329,1715045455719,-500.0,0.00024657,2]
[326526330,1715045455730,-1386.08,0.00024657,2]
[326526331,1715045455740,-500.0,0.00024657,2]
[326526332,1715045455752,-500.0,0.00024657,2]
[326526333,1715045455762,-4732.99,0.00024657,2]
[326526334,1715045455773,-500.0,0.00024657,2]
[326526335,1715045455783,-500.0,0.00024657,2]
[326526336,1715045455793,-500.0,0.00024657,2]
[326526337,1715045455804,-500.0,0.00024657,2]
[326526338,1715045455814,-500.0,0.00024657,2]
[326526339,1715045455824,-500.0,0.00024657,2]
[326526340,1715045455835,-500.0,0.00024657,2]
[326526341,1715045455845,-1262.44,0.00024657,2]
[326526342,1715045455855,-599.71,0.00024657,2]
[326526343,1715045455864,-636.05,0.00024657,2]
[326526344,1715045455874,-533.71,0.00024657,2]
[326526345,1715045455884,-500.0,0.00024657,2]
[326526346,1715045455894,-1270.14,0.00024657,2]
[326526347,1715045455909,-500.0,0.00024657,2]
[326526348,1715045455923,-1751.22,0.00024657,2]
[326526349,1715045455933,-500.0,0.00024657,2]
[326526350,1715045455943,-500.0,0.00024657,2]
[326526351,1715045455953,-29902.37,0.00024657,2]
[326526352,1715045455963,-1081.69,0.00024657,2]
[326526353,1715045455972,-500.0,0.00024657,2]
[326526354,1715045455982,-4169.1,0.00024657,2]
[326526355,1715045455992,-2244.59,0.00024657,2]
[326526356,1715045456002,-500.0,0.00024657,2]
[326526357,1715045456012,-500.0,0.00024657,2]
[326526358,1715045456022,-500.0,0.00024657,2]
[326526359,1715045456033,-500.0,0.00024657,2]
[326526360,1715045456043,-560.65,0.00024657,2]
[326526361,1715045456057,-1933.4,0.00024657,2]
[326526362,1715045456067,-927.75,0.00024657,2]
[326526363,1715045456077,-827.83,0.00024657,2]
[326526364,1715045456087,-500.0,0.00024657,2]
[326526365,1715045456098,-15558.94,0.00024657,2]
[326526366,1715045456107,-434.81446307,0.00024657,2]
[326526367,1715045456117,-500.0,0.00024657,2]
[326526368,1715045456128,-6219.57,0.00024657,2]
[326526369,1715045456139,-870.07,0.00024657,2]
[326526370,1715045456150,-500.0,0.00024657,2]
[326526371,1715045456159,-500.0,0.00024657,2]
[326526372,1715045456169,-509.36,0.00024657,2]
[326526373,1715045456179,-872.49,0.00024657,2]
[326526374,1715045456188,-495.11,0.00024657,2]
[326526375,1715045456198,-500.0,0.00024657,2]
[326526376,1715045456207,-1519.21,0.00024657,2]
[326526377,1715045456218,-1397.77,0.00024657,2]
[326526378,1715045456228,-1952.12,0.00024657,2]
[326526379,1715045456238,-283.00113048,0.00024657,2]
[326526380,1715045456249,-2886.69,0.00024657,2]
[326526381,1715045456259,-2346.6,0.00024657,2]
[326526382,1715045456269,-642.35,0.00024657,2]
[326526383,1715045456279,-4071.41,0.00024657,2]
[326526384,1715045456289,-1837.76,0.00024657,2]
[326526385,1715045456299,-739.21,0.00024657,2]
[326526386,1715045456310,-2258.32,0.00024657,2]
[326526387,1715045456319,-500.0,0.00024657,2]
[326526388,1715045456329,-1594.42,0.00024657,2]
[326526389,1715045456339,-797.85,0.00024657,2]
[326526390,1715045456349,-500.0,0.00024657,2]
[326526391,1715045456359,-500.0,0.00024657,2]
[326526392,1715045456368,-909.19,0.00024657,2]
[326526393,1715045456379,-1702.56,0.00024657,2]
[326526394,1715045456390,-1779.76,0.00024657,2]
[326526395,1715045456400,-500.0,0.00024657,2]
[326526396,1715045456410,-711.49,0.00024657,2]
[326526397,1715045456420,-1903.61,0.00024657,2]
[326526398,1715045456429,-500.0,0.00024657,2]
[326526399,1715045456439,-4341.13,0.00024657,2]
[326526400,1715045456448,-762.37,0.00024657,2]
[326526401,1715045456457,-500.0,0.00024657,2]
[326526402,1715045456467,-700.0,0.00024657,2]
[326526403,1715045456478,-905.91,0.00024657,2]
[326526404,1715045456487,-500.0,0.00024657,2]
[326526405,1715045456497,-2248.23,0.00024657,2]
[326526406,1715045456506,-3663.88,0.00024657,2]
[326526407,1715045456517,-819.94,0.00024657,2]
[326526408,1715045456526,-500.0,0.00024657,2]
[326526409,1715045456536,-500.0,0.00024657,2]
[326526410,1715045456546,-27236.7,0.00024657,2]
[326526411,1715045456556,-1038.4,0.00024657,2]
[326526412,1715045456565,-722.75,0.00024657,2]
[326526413,1715045456575,-610.05,0.00024657,2]
[326526414,1715045456584,-1773.95,0.00024657,2]
[326526415,1715045456594,-529.67,0.00024657,2]
[326526416,1715045456604,-2110.2,0.00024657,2]
[326526417,1715045456613,-5065.0,0.00024657,2]
[326526418,1715045456623,-715.13,0.00024657,2]
[326526419,1715045456632,-500.0,0.00024657,2]
[326526420,1715045456642,-771.67,0.00024657,2]
[326526421,1715045456652,-500.0,0.00024657,2]
[326526422,1715045456662,-541.45,0.00024657,2]
[326526423,1715045456672,-500.0,0.00024657,2]
[326526424,1715045456683,-608.49,0.00024657,2]
[326526425,1715045456692,-2465.11,0.00024657,2]
[326526426,1715045456702,-672.49,0.00024657,2]
[326526427,1715045456711,-2343.94,0.00024657,2]
[326526428,1715045456721,-543.28,0.00024657,2]
[326526429,1715045456732,-1992.96,0.00024657,2]
[326526430,1715045456742,-2716.83,0.00024657,2]
[326526431,1715045456752,-500.0,0.00024657,2]
[326526432,1715045456761,-500.0,0.00024657,2]
[326526433,1715045456771,-500.0,0.00024657,2]
[326526434,1715045456780,-973.95,0.00024657,2]
[326526435,1715045456790,-500.0,0.00024657,2]
[326526436,1715045456800,-2228.27,0.00024657,2]
[326526437,1715045456809,-2804.76,0.00024657,2]
[326526438,1715045456819,-500.0,0.00024657,2]
[326526439,1715045456828,-500.0,0.00024657,2]
[326526440,1715045456838,-500.0,0.00024657,2]
[326526441,1715045456848,-1968.4,0.00024657,2]
[326526442,1715045456857,-500.0,0.00024657,2]
[326526443,1715045456868,-1413.72,0.00024657,2]
[326526444,1715045456878,-526.36,0.00024657,2]
[326526445,1715045456888,-1920.5,0.00024657,2]
[326526446,1715045456899,-1259.94,0.00024657,2]
[326526447,1715045456909,-747.18,0.00024657,2]
[326526448,1715045456920,-726.49,0.00024657,2]
[326526449,1715045456929,-777.01,0.00024657,2]
[326526450,1715045456939,-530.71,0.00024657,2]
[326526451,1715045456949,-1681.06,0.00024657,2]
[326526452,1715045456958,-4084.54,0.00024657,2]
[326526453,1715045456967,-3619.15,0.00024657,2]
[326526454,1715045456977,-2462.63,0.00024657,2]
[326526455,1715045456988,-500.0,0.00024657,2]
[326526456,1715045456997,-4762.12,0.00024657,2]
[326526457,1715045457007,-1519.35,0.00024657,2]
[326526458,1715045457018,-2043.69,0.00024657,2]
[326526459,1715045457028,-1714.19,0.00024657,2]
[326526460,1715045457037,-1099.34,0.00024657,2]
[326526461,1715045457048,-1997.29,0.00024657,2]
[326526462,1715045457061,-500.0,0.00024657,2]
[326526463,1715045457072,-500.0,0.00024657,2]
[326526464,1715045457082,-2377.58,0.00024657,2]
[326526465,1715045457091,-647.41,0.00024657,2]
[326526466,1715045457101,-640.09,0.00024657,2]
[326526467,1715045457111,-835.21,0.00024657,2]
[326526468,1715045457122,-981.57,0.00024657,2]
[326526469,1715045457133,-500.0,0.00024657,2]
[326526470,1715045457143,-500.0,0.00024657,2]
[326526471,1715045457153,-2148.56,0.00024657,2]
[326526472,1715045457163,-638.35,0.00024657,2]
[326526473,1715045457173,-604.16,0.00024657,2]
[326526474,1715045457182,-546.53,0.00024657,2]
[326526475,1715045457192,-1557.73,0.00024657,2]
[326526476,1715045457201,-2697.36,0.00024657,2]
[326526477,1715045457211,-500.0,0.00024657,2]
[326526478,1715045457221,-1227.46,0.00024657,2]
[326526479,1715045457234,-932.25,0.00024657,2]
[326526480,1715045457260,-807.23,0.00024657,2]
[326526481,1715045457273,-4464.7,0.00024657,2]
[326526482,1715045457282,-6390.66,0.00024657,2]
[326526483,1715045457292,-1311.47,0.00024657,2]
[326526484,1715045457303,-6390.66,0.00024657,2]
[326526485,1715045457313,-551.54,0.00024657,2]
[326526486,1715045457323,-500.0,0.00024657,2]
[326526487,1715045457332,-6390.66,0.00024657,2]
[326526488,1715045457342,-6390.66,0.00024657,2]
[326526489,1715045457351,-6390.66,0.00024657,2]
[326526490,1715045457362,-6390.66,0.00024657,2]
[326526491,1715045457373,-2851.46,0.00024657,2]
[326526492,1715045457383,-6390.66,0.00024657,2]
[326526493,1715045457392,-2683.54,0.00024657,2]
[326526494,1715045457403,-6390.66,0.00024657,2]
[326526495,1715045457412,-6390.66,0.00024657,2]
[326526496,1715045457422,-681.75,0.00024657,2]
[326526497,1715045457431,-6390.66,0.00024657,2]
[326526498,1715045457441,-6390.66,0.00024657,2]
[326526499,1715045457450,-7945.16,0.00024657,2]
[326526500,1715045457460,-6390.66,0.00024657,2]
[326526501,1715045457470,-6390.66,0.00024657,2]
[326526502,1715045457479,-500.0,0.00024657,2]
[326526503,1715045457489,-500.0,0.00024657,2]
[326526504,1715045457500,-6390.66,0.00024657,2]
[326526505,1715045457511,-6390.66,0.00024657,2]
[326526506,1715045457520,-6390.66,0.00024657,2]
[326526507,1715045457725,-6390.66,0.00024657,2]
[326526508,1715045457746,-823.49,0.00024657,2]
[326526509,1715045457756,-965.61,0.00024657,2]
[326526510,1715045457766,-500.0,0.00024657,2]
[326526511,1715045457775,-2318.5,0.00024657,2]
[326526512,1715045457785,-5770.67,0.00024657,2]
[326526513,1715045457794,-789.7,0.00024657,2]
[326526514,1715045457806,-500.0,0.00024657,2]
[326526515,1715045457815,-500.0,0.00024657,2]
[326526516,1715045457825,-383.77368578,0.00024657,2]
[326526517,1715045457834,-1299.95,0.00024657,2]
[326526518,1715045457844,-866.73,0.00024657,2]
[326526519,1715045457853,-2440.57,0.00024657,2]
[326526520,1715045457863,-1360.1,0.00024657,2]
[326526521,1715045457873,-545.77,0.00024657,2]
[326526522,1715045457883,-599.57,0.00024657,2]
[326526523,1715045457893,-979.29,0.00024657,2]
[326526524,1715045457903,-500.0,0.00024657,2]
[326526525,1715045457915,-500.0,0.00024657,2]
[326526526,1715045457928,-3621.9,0.00024657,2]
[326526527,1715045457939,-500.0,0.00024657,2]
[326526528,1715045457948,-500.0,0.00024657,2]
[326526529,1715045457957,-1806.78,0.00024657,2]
[326526530,1715045457966,-642.97,0.00024657,2]
[326526531,1715045457976,-3738.39,0.00024657,2]
[326526532,1715045457986,-528.43,0.00024657,2]
[326526533,1715045457997,-500.0,0.00024657,2]
[326526534,1715045458006,-23081.69,0.00024657,2]
[326526535,1715045458016,-3430.75,0.00024657,2]
[326526536,1715045458025,-1799.1,0.00024657,2]
[326526537,1715045458035,-632.73,0.00024657,2]
[326526538,1715045458044,-1879.74,0.00024657,2]
[326526539,1715045458058,-11415.07,0.00024657,2]
[326526540,1715045458069,-2201.36,0.00024657,2]
[326526541,1715045458078,-6803.23,0.00024657,2]
[326526542,1715045458089,-500.0,0.00024657,2]
[326526543,1715045458098,-557.27,0.00024657,2]
[326526544,1715045458108,-500.0,0.00024657,2]
[326526545,1715045458117,-1554.7,0.00024657,2]
[326526546,1715045458127,-1243.51,0.00024657,2]
[326526547,1715045458137,-4675.02,0.00024657,2]
[326526548,1715045458147,-577.76078069,0.00024657,2]
[326526549,1715045458158,-3459.93,0.00024657,2]
[326526550,1715045458168,-773.97,0.00024657,2]
[326526551,1715045458178,-2490.98,0.00024657,2]
[326526552,1715045458196,-1010.05,0.00024657,2]
[326526553,1715045458206,-500.0,0.00024657,2]
[326526554,1715045458215,-723.06,0.00024657,2]
[326526555,1715045458224,-2891.13,0.00024657,2]
[326526556,1715045458234,-10491.02,0.00024657,2]
[326526557,1715045458244,-711.83,0.00024657,2]
[326526558,1715045458255,-622.36,0.00024657,2]
[326526559,1715045458264,-1032.02,0.00024657,2]
[326526560,1715045458274,-1713.68,0.00024657,2]
[326526561,1715045458283,-890.83,0.00024657,2]
[326526562,1715045458292,-500.0,0.00024657,2]
[326526563,1715045458303,-500.0,0.00024657,2]
[326526564,1715045458312,-500.0,0.00024657,2]
[326526565,1715045458322,-1172.93,0.00024657,2]
[326526566,1715045458331,-636.9,0.00024657,2]
[326526567,1715045458340,-1926.39,0.00024657,2]
[326526568,1715045458350,-2799.45,0.00024657,2]
[326526569,1715045458360,-9329.91,0.00024657,2]
[326526570,1715045458371,-500.0,0.00024657,2]
[326526571,1715045458380,-1647.28,0.00024657,2]
[326526572,1715045458390,-529.17,0.00024657,2]
[326526573,1715045458399,-7069.01,0.00024657,2]
[326526574,1715045458409,-880.73,0.00024657,2]
[326526575,1715045458419,-7655.21,0.00024657,2]
[326526576,1715045458430,-500.07,0.00024657,2]
[326526577,1715045458440,-500.0,0.00024657,2]
[326526578,1715045458451,-500.0,0.00024657,2]
[326526579,1715045458461,-1689.46,0.00024657,2]
[326526580,1715045458470,-500.0,0.00024657,2]
[326526581,1715045458481,-1040.46,0.00024657,2]
[326526582,1715045458491,-7464.09,0.00024657,2]
[326526583,1715045458501,-962.36,0.00024657,2]
[326526584,1715045458512,-1345.95,0.00024657,2]
[326526585,1715045458521,-530.97,0.00024657,2]
[326526586,1715045458531,-653.43,0.00024657,2]
[326526587,1715045458540,-500.0,0.00024657,2]
[326526588,1715045458551,-804.88,0.00024657,2]
[326526589,1715045458573,-1006.72,0.00024657,2]
[326526590,1715045458595,-3007.55,0.00024657,2]
[326526591,1715045458629,-610.45716447,0.00024657,2]
[326526592,1715045458639,-667.61,0.00024657,2]
[326526593,1715045458649,-2869.95,0.00024657,2]
[326526594,1715045458659,-500.0,0.00024657,2]
[326526595,1715045458668,-2258.08,0.00024657,2]
[326526596,1715045458678,-500.0,0.00024657,2]
[326526597,1715045458688,-3055.02,0.00024657,2]
[326526598,1715045458698,-1772.67,0.00024657,2]
[326526599,1715045458708,-500.0,0.00024657,2]
[326526600,1715045458718,-598.88,0.00024657,2]
[326526601,1715045458728,-1456.66,0.00024657,2]
[326526602,1715045458738,-1190.64,0.00024657,2]
[326526603,1715045458747,-3473.83,0.00024657,2]
[326526604,1715045458757,-828.54,0.00024657,2]
[326526605,1715045458766,-500.0,0.00024657,2]
[326526606,1715045458776,-2249.14,0.00024657,2]
[326526607,1715045458786,-843.34,0.00024657,2]
[326526608,1715045458795,-500.0,0.00024657,2]
[326526609,1715045458806,-677.09,0.00024657,2]
[326526610,1715045458816,-2506.19,0.00024657,2]
[326526611,1715045458826,-500.0,0.00024657,2]
[326526612,1715045458836,-4058.06,0.00024657,2]
[326526613,1715045458846,-500.0,0.00024657,2]
[326526614,1715045458855,-2294.29,0.00024657,2]
[326526615,1715045458865,-519.58,0.00024657,2]
[326526616,1715045458874,-500.0,0.00024657,2]
[326526617,1715045458885,-1143.99,0.00024657,2]
[326526618,1715045458894,-15254.78,0.00024657,2]
[326526619,1715045458905,-3410.26,0.00024657,2]
[326526620,1715045458915,-1184.21,0.00024658,2]
[326526621,1715045458928,-895.61,0.000247,2]
[326526622,1715045458938,-999.76,0.000247,2]
[326526623,1715045458948,-1000.0,0.00024732,2]
[326526624,1715045458958,-1008.84,0.000248,2]
[326526625,1715045458967,-304.56,0.000248,2]
[326526626,1715045458976,-160.66781177,0.000249,2]
[326526627,1715045458985,-150.0,0.00024904,4]
[326526628,1715045458996,-150.0,0.00024904,4]
[326526629,1715045459006,-159.57287611,0.00024904,4]
[326526630,1715045459015,-154.25207123,0.00024904,4]
[326526631,1715045459025,-150.0,0.00024904,4]
[326526632,1715045459035,-150.0,0.00024904,4]
[326526633,1715045459045,-165.00245037,0.00024904,4]
[326526634,1715045459060,-204.0,0.0002491,2]
[326526635,1715045459070,-222.0,0.0002491,2]
[326526636,1715045459079,-213.0,0.0002491,2]
[326526637,1715045459089,-500.0,0.00024929,2]
[326526638,1715045459098,-151.0,0.0002493,7]
[326526639,1715045459108,-151.0,0.0002493,7]
[326526640,1715045459118,-151.0,0.0002493,7]
[326526641,1715045459127,-500.0,0.0002493,2]
[326526642,1715045459137,-279.53998596,0.0002493,2]
[326526643,1715045459147,-6390.66,0.0002493,2]
[326526644,1715045459157,-6390.66,0.0002493,2]
[326526645,1715045459167,-6390.66,0.0002493,2]
[326526646,1715045459177,-6390.66,0.0002493,2]
[326526647,1715045459187,-6390.66,0.0002493,2]
[326526648,1715045459196,-6390.66,0.0002493,2]
[326526649,1715045459206,-6390.77342183,0.0002493,2]
[326526650,1715045459215,-434.591144,0.0002493,7]
[326526651,1715045459224,-434.591144,0.0002493,7]
[326526652,1715045459234,-500.0,0.00024931,2]
[326526653,1715045459244,-500.0,0.00024931,2]
[326526654,1715045459253,-500.0,0.00024931,2]
[326526655,1715045459263,-500.0,0.00024931,2]
[326526656,1715045459272,-500.0,0.00024931,2]
[326526657,1715045459282,-585.67,0.00024931,2]
[326526658,1715045459291,-500.0,0.00024931,2]
[326526659,1715045459302,-500.0,0.00024931,2]
[326526660,1715045459311,-500.0,0.00024931,2]
[326526661,1715045459321,-837.9,0.00024931,2]
[326526662,1715045459330,-500.0,0.00024931,2]
[326526663,1715045459340,-564.74,0.00024931,2]
[326526664,1715045459350,-500.0,0.00024931,2]
[326526665,1715045459360,-500.0,0.00024931,2]
[326526666,1715045459369,-500.0,0.00024931,2]
[326526667,1715045459379,-500.0,0.00024931,2]
[326526668,1715045459388,-500.0,0.00024931,2]
[326526669,1715045459398,-500.0,0.00024931,2]
[326526670,1715045459408,-500.0,0.00024931,2]
[326526671,1715045459418,-500.0,0.00024931,2]
[326526672,1715045459428,-500.0,0.00024931,2]
[326526673,1715045459438,-500.0,0.00024931,2]
[326526674,1715045459453,-500.0,0.00024931,2]
[326526675,1715045459464,-500.0,0.00024931,2]
[326526676,1715045459474,-639.65,0.00024931,2]
[326526677,1715045459484,-500.0,0.00024931,2]
[326526678,1715045459493,-781.06,0.00024931,2]
[326526679,1715045459503,-500.0,0.00024931,2]
[326526680,1715045459514,-500.0,0.00024931,2]
[326526681,1715045459523,-500.0,0.00024931,2]
[326526682,1715045459533,-500.0,0.00024931,2]
[326526683,1715045459542,-515.44,0.00024931,2]
[326526684,1715045459552,-500.0,0.00024931,2]
[326526685,1715045459561,-500.0,0.00024931,2]
[326526686,1715045459571,-500.0,0.00024931,2]
[326526687,1715045459580,-500.0,0.00024931,2]
[326526688,1715045459591,-500.0,0.00024931,2]
[326526689,1715045459601,-912.73,0.00024931,2]
[326526690,1715045459610,-601.25,0.00024931,2]
[326526691,1715045459621,-500.0,0.00024931,2]
[326526692,1715045459630,-613.45,0.00024931,2]
[326526693,1715045459641,-444.46282807,0.00024931,2]
[326526694,1715045460192,-55.53717193,0.00024931,2]
[326526695,1715045460202,-500.0,0.00024931,2]
[326526696,1715045460212,-387.12457559,0.00024931,2]
[326526697,1715045460409,-166.22,0.0001299,2]
[326526698,1715045460419,-500.0,0.00024657,2]
[326526699,1715045460428,-112.87542441,0.00024931,2]
[326526700,1715045460438,-26.19651659,0.00024931,2]
[326526701,1715045460449,-473.80348341,0.00024931,2]
[326526702,1715045460459,-182.15035423,0.00024931,2]
[326526703,1715045464897,546.45604395,9.642e-05,2]
[326526705,1715045637344,-8957.5875,0.00011899,2]
[326526706,1715045638673,-250.0,0.00012052,2]
[326526707,1715045639264,-345.3,0.00012052,2]
[326526708,1715045639293,-981.93329468,0.00012052,2]
[326526709,1715045639329,-166.22,0.0001299,2]
[326526710,1715045639356,-166.22,0.0001299,2]
[326526711,1715045639382,-166.22,0.0001299,2]
[326526712,1715045639407,-298.29377173,0.00012998,2]
[326526713,1715045639433,-1266.96061034,0.00012999,2]
[326526714,1715045650171,401.26482325,0.00012999,2]
[326526715,1715045674437,-2655.40897355,0.00012999,2]
[326526716,1715045675508,915.17964812,0.00012998,2]
[326526717,1715045691769,3056.6737968,0.00012999,2]
[326526718,1715045697184,350.138049,0.00012935,2]
[326526719,1715045711510,3058.08261822,0.00012999,2]
[326526720,1715045742941,-400000.0,0.00013,2]
[326526721,1715045765932,-150.0,0.00012999,2]
[326526722,1715045765959,-335850.0,0.00013,2]
[326526734,1715046360338,10000.0,0.00025,120]
[326526749,1715046635511,-465.29776624,0.00012,2]
[326526750,1715046635521,-1122.22892988,0.000129,2]
[326526751,1715046635705,-14366.50367012,0.000129,2]
[326526752,1715046635715,-8939.0768,0.000129,2]
[326526753,1715046635725,-2500.0,0.000129,2]
[326526754,1715046635735,-173.10361803,0.00012958,2]
[326526755,1715046635747,-166.22,0.0001299,2]
[326526756,1715046635757,-1252.23404788,0.00012998,2]
[326526757,1715046635766,-1487.49687824,0.00012998,2]
[326526758,1715046635776,-269.87516605,0.00012999,2]
[326526759,1715046635907,-2796.89901218,0.00012999,2]
[326526760,1715046635916,-158.28401319,0.00012999,2]
[326526761,1715046635925,-1015.80267143,0.00012999,2]
[326526762,1715046635939,-50.12747491,0.00012999,2]
[326526763,1715046635949,-7007.08393371,0.00012999,2]
[326526764,1715046635961,-23029.34300293,0.00012999,2]
[326526765,1715046635971,-291914.30723734,0.00013,2]
[326526785,1715046639650,-186.71733513,0.00012958,2]
[326526787,1715046639660,-63882.75390956,0.00013,2]
[326526788,1715046639672,-19598.90588357,0.00013,2]
[326526789,1715046639683,-3094.90000003,0.00013,2]
[326526790,1715046639695,-3097.88726791,0.00013,2]
[326526791,1715046639706,-2598.47316635,0.00013,2]
[326526795,1715046642185,-830.02365579,0.00012958,2]
[326526796,1715046642195,-5544.451789,0.00013,2]
[326526797,1715046642207,-332.88138164,0.00013,2]
[326526798,1715046642218,-2111.66186506,0.00013,2]
[326526799,1715046642228,-273127.66926264,0.00013,2]
[326526800,1715046642240,-4299.74139547,0.00013,2]
[326526801,1715046642253,-2642.15021336,0.00013,2]
[326526802,1715046642264,-3056.75,0.00013,2]
[326526819,1715046646744,-862.0099998,0.00013,2]
[326526820,1715046646758,-1268.62,0.00013,2]
[326526821,1715046646770,-1376.75454,0.00013,2]
[326526822,1715046646783,-29047.26507993,0.00013,2]
[326526823,1715046646795,-1716.24579306,0.00013,2]
[326526824,1715046646808,-1455.0,0.00013,2]
[326526825,1715046646820,-891678.36587138,0.00013,2]
[326526826,1715046647207,-3465.7968536,0.00013,2]
[326526828,1715046647220,-85783.91227104,0.00013,2]
[326526834,1715046653116,-387.6561501,0.00013,2]
[326526837,1715046653611,-2187.35598326,0.00013,2]
[326526843,1715046906621,1422.9369308,0.00022,30]
[326526844,1715047481293,1237.74,0.00023,30]
[326526845,1715047658068,387.0,0.00025008,120]
[326526847,1715047838296,-155.0,0.00011899,2]
[326526848,1715047838305,-159.39518885,0.000119,2]
[326526849,1715047838314,-414.52598547,0.00011999,2]
[326526850,1715047838325,-2215.9580602,0.00011999,2]
[326526851,1715047838335,-4406.77745898,0.00012,2]
[326526852,1715047838344,-409.72269512,0.00012499,2]
[326526853,1715047838353,-252.02181648,0.00012659,2]
[326526855,1715047838363,-3213.78200063,0.0001266,2]
[326526856,1715047838372,-480.10503079,0.00012717,2]
[326526858,1715047838382,-23900.0,0.00012826,2]
[326526860,1715047838391,-1361.62585,0.0001287,2]
[326526861,1715047838405,-331.02736375,0.0001289,2]
[326526862,1715047838442,-269.3037007,0.0001289,2]
[326526863,1715047838488,-2500.0,0.00012899,2]
[326526864,1715047838500,-364.63801886,0.00012899,2]
[326526865,1715047838510,-1000.0,0.000129,2]
[326526866,1715047838521,-1083.47841256,0.000129,2]
[326526867,1715047838531,-736.7135,0.000129,2]
[326526868,1715047838540,-182.72090164,0.000129,2]
[326526869,1715047838550,-170.60020545,0.000129,2]